bitfinex/quotes_SOLUSD_20220104
["timestamp","ask_amount","ask_price","bid_price","bid_amount"]
[1641328322216,2.39641946,169.29,169.19,31.38090777]
[1641328322516,2.89641946,169.29,169.19,31.88090777]
[1641328322715,25.64621946,169.29,169.19,31.88090777]
[1641328323518,25.90621946,169.29,169.19,0.5]
[1641328323718,25.64621946,169.29,169.19,0.5]
[1641328323920,25.64621946,169.29,169.18,1.8211]
[1641328324118,25.64621946,169.29,169.18,1.3211]
[1641328324320,25.64621946,169.29,169.18,1.8211]
[1641328324518,23.39005253,169.28,169.18,1.8211]
[1641328324919,23.89005253,169.28,169.18,1.8211]
[1641328326220,23.89005253,169.28,169.18,2.0811]
[1641328328521,0.5,169.28,169.18,2.0811]
[1641328328923,26.88951946,169.29,169.18,2.0811]
[1641328329523,58.38974561,169.29,169.18,2.0811]
[1641328330128,58.64974561,169.29,169.18,0.5]
[1641328330326,7.1,169.28,169.17,24.0905]
[1641328330625,7.36,169.28,169.17,24.0905]
[1641328330824,7.86,169.28,169.17,0.5]
[1641328331025,24.636,169.27,169.17,0.5]
[1641328331226,24.636,169.27,169.15,1.7931]
[1641328331428,25.396,169.27,169.15,1.7931]
[1641328331725,26.6484,169.27,169.15,1.7931]
[1641328332125,26.6484,169.27,169.15,2.0531]
[1641328332326,7.1,169.26,169.15,2.0531]
[1641328332726,7.6,169.26,169.15,2.0531]
[1641328332927,23.7255,169.25,169.15,2.0531]
[1641328333427,24.2255,169.25,169.15,2.0531]
[1641328333630,24.2255,169.25,169.15,1.7931]
[1641328333828,24.4855,169.25,169.15,0.5]
[1641328334332,7.1,169.24,169.12,93.2]
[1641328334532,8.86265782,169.22,169.12,93.2]
[1641328334929,9.36265782,169.22,169.12,93.2]
[1641328335429,9.36265782,169.22,169.13,23.119]
[1641328335828,9.36265782,169.22,169.13,23.619]
[1641328336631,9.36265782,169.22,169.13,24.9562]
[1641328336829,2.85456512,169.22,169.13,24.9562]
[1641328337629,2.85456512,169.22,169.13,25.2162]
[1641328338030,0.5,169.22,169.13,25.2162]
[1641328338430,23.6757,169.23,169.13,25.2162]
[1641328338636,23.6757,169.23,169.13,26.66470786]
[1641328340433,75.20537799,169.26,169.13,26.66470786]
[1641328340833,75.70537799,169.26,169.13,26.66470786]
[1641328341833,23.6359,169.25,169.13,26.66470786]
[1641328343838,72.9141,169.26,169.14,7.1]
[1641328344039,72.9141,169.26,169.14,13.648]
[1641328344241,72.9141,169.26,169.15,1.44850786]
[1641328344440,1.3421,169.28,169.15,1.94850786]
[1641328344739,2.26132489,169.27,169.17,26.71430468]
[1641328344940,2.26132489,169.27,169.17,27.21430468]
[1641328345140,2.26132489,169.27,169.17,28.92281254]
[1641328345439,2.26132489,169.27,169.18,22.5983]
[1641328345939,2.26132489,169.27,169.18,23.3583]
[1641328346339,24.2539,169.3,169.18,23.3583]
[1641328346540,24.5139,169.3,169.19,1.2862]
[1641328346740,25.0139,169.3,169.19,1.2862]
[1641328346944,25.0139,169.3,169.19,2.0462]
[1641328347340,2.19758794,169.29,169.19,2.0462]
[1641328347768,2.69758794,169.29,169.19,2.0462]
[1641328349770,2.19758794,169.29,169.19,2.0462]
[1641328351273,2.69758794,169.29,169.19,2.0462]
[1641328352479,2.19758794,169.29,169.19,2.0462]
[1641328353676,2.19758794,169.29,169.19,9.1462]
[1641328354277,13.12837507,169.16,169.13,73.268]
[1641328354581,2.95914094,169.15,169.1,2.25124973]
[1641328355779,2.95914094,169.15,169.1,2.75124973]
[1641328356381,2.95914094,169.15,169.1,3.01124973]
[1641328358582,13.12837507,169.16,169.1,3.01124973]
[1641328363390,13.12837507,169.16,169.1,2.75124973]
[1641328366088,13.12837507,169.16,169.1,3.01124973]
[1641328367488,13.12837507,169.16,169.1,29.15101514]
[1641328373194,13.12837507,169.16,169.1,28.89101514]
[1641328374604,13.12837507,169.16,169.1,29.15101514]
[1641328377105,13.12837507,169.16,169.1,35.72801514]
[1641328378307,13.12837507,169.16,169.1,29.15101514]
[1641328387542,13.12837507,169.16,169.1,38.06421514]
[1641328387941,13.12837507,169.16,169.1,29.15101514]
[1641328399353,13.12837507,169.16,169.1,28.89101514]
[1641328400959,13.12837507,169.16,169.1,29.15101514]
[1641328402363,13.12837507,169.16,169.1,28.89101514]
[1641328403768,13.12837507,169.16,169.1,29.15101514]
[1641328406068,13.12837507,169.16,169.1,37.67101514]
[1641328411190,13.12837507,169.16,169.1,46.58061514]
[1641328412693,13.12837507,169.16,169.1,37.67101514]
[1641328412892,13.12837507,169.16,169.1,28.89101514]
[1641328414093,13.12837507,169.16,169.1,29.15101514]
[1641328415493,13.12837507,169.16,169.1,37.67101514]
[1641328426207,13.12837507,169.16,169.1,37.41101514]
[1641328427533,13.12837507,169.16,169.1,37.67101514]
[1641328429337,13.12837507,169.16,169.1,37.41101514]
[1641328430738,13.12837507,169.16,169.1,37.67101514]
[1641328438546,13.12837507,169.16,169.1,46.53661514]
[1641328440849,13.12837507,169.16,169.11,8.8652]
[1641328441049,13.12837507,169.16,169.12,8.52]
[1641328441451,13.12837507,169.16,169.12,9.28]
[1641328441852,122.9091,169.49,169.12,9.28]
[1641328441853,29.04266961,169.34,169.16,13.12837507]
[1641328442049,24.7342,169.28,169.17,82.334]
[1641328442249,24.7342,169.28,169.18,25.01583597]
[1641328442449,24.7342,169.28,169.19,8.52]
[1641328442649,1.2976,169.29,169.2,22.7113]
[1641328442850,2.29585294,169.27,169.21,8.52]
[1641328443253,2.29585294,169.27,169.21,9.28]
[1641328445282,2.29585294,169.27,169.21,9.02]
[1641328445456,2.29585294,169.27,169.21,0.5]
[1641328445856,2.29585294,169.27,169.18,9.02]
[1641328446456,2.29585294,169.27,169.18,9.28]
[1641328446857,25.85765294,169.27,169.18,9.28]
[1641328449759,25.85765294,169.27,169.18,8.78]
[1641328451365,25.85765294,169.27,169.18,9.28]
[1641328452566,25.85765294,169.27,169.18,0.76]
[1641328452989,25.85765294,169.27,169.16,13.88837507]
[1641328455495,1.2924,169.26,169.16,13.88837507]
[1641328456394,1.2924,169.26,169.17,8.52]
[1641328456594,1.2924,169.26,169.17,8.78]
[1641328456796,1.2924,169.26,169.17,9.28]
[1641328459396,1.2924,169.26,169.17,8.78]
[1641328460406,1.44850786,169.25,169.17,8.52]
[1641328460607,2.35499771,169.24,169.17,8.52]
[1641328460812,2.35499771,169.24,169.17,9.02]
[1641328461507,2.35499771,169.24,169.17,9.28]
[1641328464612,2.35499771,169.24,169.18,24.80083152]
[1641328465013,2.35499771,169.24,169.18,25.56083152]
[1641328465211,1.66376655,169.25,169.18,25.56083152]
[1641328465410,2.95616655,169.26,169.18,25.56083152]
[1641328466015,1.2924,169.26,169.18,25.56083152]
[1641328466213,3.69416034,169.26,169.18,25.56083152]
[1641328471647,3.69416034,169.26,169.18,32.52783152]
[1641328472146,1.2924,169.26,169.18,32.52783152]
[1641328477851,1.2924,169.26,169.18,41.04783152]
[1641328479258,1.2924,169.26,169.19,24.5708]
[1641328479457,1.2924,169.26,169.19,25.0708]
[1641328479657,1.2924,169.26,169.19,25.3308]
[1641328480556,1.2924,169.26,169.19,26.6803]
[1641328484566,1.2924,169.26,169.19,26.4203]
[1641328486067,1.2924,169.26,169.19,26.6803]
[1641328491005,1.2924,169.26,169.19,26.4203]
[1641328492506,1.2924,169.26,169.19,26.6803]
[1641328495005,1.2924,169.26,169.19,26.4203]
[1641328496309,1.2924,169.26,169.19,26.6803]
[1641328496507,1.2924,169.26,169.19,26.4203]
[1641328498009,1.2924,169.26,169.19,26.6803]
[1641328498210,1.2924,169.26,169.19,26.1803]
[1641328498414,1.2924,169.26,169.19,26.6803]
[1641328499512,1.2924,169.26,169.19,24.8308]
[1641328499712,1.2924,169.26,169.19,25.3308]
[1641328500418,1.2924,169.26,169.19,0.26]
[1641328500819,1.2924,169.26,169.18,8.78]
[1641328501818,1.2924,169.26,169.19,25.53385717]
[1641328502019,1.2924,169.26,169.19,25.79385717]
[1641328502219,1.2924,169.26,169.19,52.47385717]
[1641328502619,1.2924,169.26,169.19,26.94]
[1641328504027,1.2924,169.26,169.19,25.6813]
[1641328504222,26.46321744,169.27,169.19,25.6813]
[1641328504423,26.96321744,169.27,169.19,25.1813]
[1641328504823,26.96321744,169.27,169.19,25.6813]
[1641328507928,26.96321744,169.27,169.19,0.76]
[1641328508327,26.96321744,169.27,169.18,9.28]
[1641328511833,1.318,169.28,169.18,9.28]
[1641328512033,1.66376655,169.29,169.19,26.50750786]
[1641328512233,1.66376655,169.29,169.2,8.52]
[1641328512433,1.66376655,169.29,169.21,23.1489]
[1641328512634,1.66376655,169.29,169.22,8.52]
[1641328512833,4.05693899,169.29,169.23,27.09533224]
[1641328513035,4.05693899,169.29,169.24,8.52]
[1641328513434,4.05693899,169.29,169.24,9.28]
[1641328513635,4.05693899,169.29,169.24,8.78]
[1641328513835,2.39317244,169.29,169.24,9.28]
[1641328519668,2.39317244,169.29,169.24,0.26]
[1641328519872,2.89317244,169.29,169.24,0.26]
[1641328520070,2.89317244,169.29,169.2,0.5]
[1641328520268,1.2671,169.28,169.2,0.5]
[1641328520468,1.7671,169.28,169.18,29.01048322]
[1641328522069,1.7671,169.28,169.19,23.5328]
[1641328522472,1.7671,169.28,169.19,24.2928]
[1641328522971,1.7671,169.28,169.19,0.26]
[1641328523173,3.21560786,169.28,169.15,8.52]
[1641328523371,3.21560786,169.28,169.16,13.62837507]
[1641328523972,2.80726918,169.26,169.16,13.62837507]
[1641328524375,3.30726918,169.26,169.16,13.88837507]
[1641328524776,1.3312,169.25,169.16,13.88837507]
[1641328525174,1.8312,169.25,169.16,13.88837507]
[1641328525376,1.8312,169.25,169.16,13.62837507]
[1641328526879,1.8312,169.25,169.16,13.88837507]
[1641328528578,1.8312,169.25,169.16,36.68287507]
[1641328531481,1.8312,169.25,169.16,36.18287507]
[1641328536994,1.3312,169.25,169.16,36.18287507]
[1641328537192,24.5491,169.25,169.16,36.18287507]
[1641328539599,24.5491,169.25,169.17,1.2822]
[1641328539998,24.5491,169.25,169.17,1.5422]
[1641328543517,25.0491,169.25,169.17,1.5422]
[1641328545418,24.5491,169.25,169.17,1.5422]
[1641328545617,24.5491,169.25,169.17,2.0422]
[1641328546219,24.5491,169.25,169.18,29.97347927]
[1641328546421,24.5491,169.25,169.18,30.47347927]
[1641328546620,1.66376655,169.28,169.18,35.91147927]
[1641328546821,1.66376655,169.28,169.19,24.5821]
[1641328547022,1.16376655,169.28,169.19,24.8421]
[1641328547223,1.16376655,169.29,169.19,25.3421]
[1641328547821,2.55535819,169.28,169.19,25.3421]
[1641328548022,2.55535819,169.28,169.2,1.278]
[1641328548422,2.55535819,169.28,169.2,2.038]
[1641328576778,2.05535819,169.28,169.2,2.038]
[1641328577780,2.05535819,169.28,169.2,1.778]
[1641328579082,2.05535819,169.28,169.2,2.038]
[1641328582184,2.05535819,169.28,169.2,0.76]
[1641328582386,2.05535819,169.28,169.2,0.26]
[1641328582584,2.05535819,169.28,169.19,25.0821]
[1641328582585,2.05535819,169.28,169.19,0.5]
[1641328582789,2.55535819,169.28,169.16,22.14837507]
[1641328582991,2.55535819,169.28,169.16,21.64837507]
[1641328583391,1.3083,169.27,169.16,21.64837507]
[1641328583794,1.16376655,169.3,169.16,23.09688293]
[1641328583996,2.51906655,169.3,169.17,24.4076]
[1641328584195,2.51906655,169.3,169.17,32.9276]
[1641328584394,2.51906655,169.3,169.19,27.06416482]
[1641328584595,2.78518291,169.29,169.2,24.4013]
[1641328584795,1.3553,169.3,169.2,31.20680786]
[1641328585095,1.3553,169.3,169.2,31.96680786]
[1641328585495,1.3553,169.3,169.2,30.5183]
[1641328585697,2.51518405,169.29,169.2,39.0383]
[1641328586297,1.3553,169.3,169.2,39.0383]
[1641328586495,7.29531258,169.3,169.2,39.0383]
[1641328587097,7.29531258,169.3,169.2,38.5383]
[1641328587297,2.8319943,169.29,169.2,38.5383]
[1641328593931,2.8319943,169.29,169.2,39.0383]
[1641328594332,2.8319943,169.29,169.2,38.5383]
[1641328595833,2.8319943,169.29,169.2,39.0383]
[1641328596033,2.8319943,169.29,169.2,38.5383]
[1641328596734,1.3553,169.3,169.2,38.5383]
[1641328597134,1.3553,169.3,169.2,39.98680786]
[1641328597735,2.3275716,169.29,169.2,39.98680786]
[1641328603239,2.3275716,169.29,169.2,33.1813]
[1641328603639,2.3275716,169.29,169.2,24.6613]
[1641328604042,2.3275716,169.29,169.2,24.4013]
[1641328605640,2.3275716,169.29,169.2,24.6613]
[1641328606743,2.3275716,169.29,169.2,24.4013]
[1641328608054,2.3275716,169.29,169.2,23.3539]
[1641328610145,2.3275716,169.29,169.2,0.26]
[1641328610347,2.3275716,169.29,169.18,74.9714]
[1641328610944,1.2491,169.28,169.18,74.9714]
[1641328612846,1.2491,169.28,169.19,23.2645]
[1641328613046,1.2491,169.28,169.19,23.5245]
[1641328613446,1.2491,169.28,169.2,1.2334]
[1641328613847,1.2491,169.28,169.2,1.4934]
[1641328615751,1.2491,169.28,169.2,1.9934]
[1641328615954,1.2491,169.28,169.2,1.4934]
[1641328618156,1.2491,169.28,169.2,0.26]
[1641328618455,1.2491,169.28,169.19,23.2645]
[1641328619157,1.2491,169.28,169.18,1.3364]
[1641328619562,1.2491,169.28,169.18,1.5964]
[1641328620262,3.72432582,169.27,169.18,1.5964]
[1641328621265,3.72432582,169.27,169.17,23.0762]
[1641328621669,3.72432582,169.27,169.16,13.12837507]
[1641328621868,2.37094505,169.26,169.16,13.12837507]
[1641328622074,3.99424505,169.26,169.16,13.12837507]
[1641328622968,3.99424505,169.26,169.16,13.38837507]
[1641328623573,3.99424505,169.26,169.16,13.12837507]
[1641328624672,12.51424505,169.26,169.16,13.12837507]
[1641328625070,24.402,169.25,169.16,13.12837507]
[1641328625269,2.37276697,169.23,169.16,13.12837507]
[1641328625469,2.63276697,169.23,169.16,13.12837507]
[1641328625971,8.52,169.22,169.16,13.12837507]
[1641328626169,2.45238801,169.2,169.1,2.25124973]
[1641328626470,27.70418801,169.2,169.1,2.25124973]
[1641328626970,27.13353866,169.19,169.1,2.25124973]
[1641328627172,40.46653866,169.19,169.1,2.25124973]
[1641328627373,40.72653866,169.19,169.1,2.25124973]
[1641328627569,2.53270861,169.17,169.09,1.5626188]
[1641328627769,11.05270861,169.17,169.09,1.5626188]
[1641328627969,11.31270861,169.17,169.09,1.5626188]
[1641328628570,11.05270861,169.17,169.09,1.5626188]
[1641328628770,12.21647516,169.17,169.09,1.5626188]
[1641328628971,12.47647516,169.17,169.09,1.5626188]
[1641328629394,11.31270861,169.17,169.09,1.5626188]
[1641328629797,11.31270861,169.17,169.09,1.8226188]
[1641328630198,11.31270861,169.17,169.09,1.5626188]
[1641328630397,11.31270861,169.17,169.09,1.8226188]
[1641328630597,11.05270861,169.17,169.09,1.8226188]
[1641328631196,11.05270861,169.17,169.09,0.26]
[1641328631597,11.05270861,169.17,169.04,23.1473]
[1641328631997,12.57360861,169.17,169.04,23.1473]
[1641328634803,12.57360861,169.17,169.05,1.2916]
[1641328635004,12.57360861,169.17,169.05,1.5516]
[1641328636105,12.57360861,169.17,169.0,1.44850786]
[1641328636304,12.57360861,169.17,168.99,48.7118]
[1641328636504,12.57360861,169.17,169.0,0.5]
[1641328637005,12.57360861,169.17,168.99,50.16030786]
[1641328637204,13.73737516,169.17,168.99,50.16030786]
[1641328637608,13.73737516,169.17,169.0,1.2843]
[1641328638007,10.40221681,169.15,169.0,1.5443]
[1641328638209,2.2303263,169.13,169.0,1.5443]
[1641328638610,2.2303263,169.13,169.0,2.99280786]
[1641328639010,3.5399263,169.13,169.01,23.5017]
[1641328639410,3.5399263,169.13,169.01,23.7617]
[1641328639610,3.5399263,169.13,169.01,25.21020786]
[1641328640212,3.5399263,169.13,169.02,1.3122]
[1641328640612,3.5399263,169.13,169.02,1.5722]
[1641328641212,3.5399263,169.13,169.02,1.3122]
[1641328642514,3.7999263,169.13,169.02,1.3122]
[1641328643119,3.5399263,169.13,169.02,1.3122]
[1641328643516,3.5399263,169.13,169.02,31.33991329]
[1641328643921,3.5399263,169.13,169.03,23.3864]
[1641328644318,3.5399263,169.13,169.03,23.6464]
[1641328645819,3.5399263,169.13,169.04,1.2511]
[1641328646020,3.5399263,169.13,169.04,1.5111]
[1641328647119,4.0399263,169.13,169.04,1.5111]
[1641328647320,4.0399263,169.13,169.04,2.0111]
[1641328648923,4.0399263,169.13,169.04,1.5111]
[1641328649122,4.0399263,169.13,169.04,2.0111]
[1641328649525,4.0399263,169.13,169.04,1.7511]
[1641328650925,4.0399263,169.13,169.04,2.0111]
[1641328652729,4.0399263,169.13,169.04,0.5]
[1641328652930,4.0399263,169.13,169.04,1.2637]
[1641328653333,4.0399263,169.13,169.04,1.7637]
[1641328653932,4.0399263,169.13,169.04,0.26]
[1641328654136,8.52,169.12,169.02,92.7]
[1641328654338,9.02,169.12,169.02,92.7]
[1641328654541,9.28,169.12,169.02,92.7]
[1641328654939,7.87513559,169.11,169.02,92.7]
[1641328655138,8.52,169.1,168.96,31.41316435]
[1641328655354,2.46827993,169.09,168.96,31.91316435]
[1641328655557,27.14095686,169.07,168.96,31.91316435]
[1641328655762,27.14095686,169.07,168.94,100.8268]
[1641328655959,2.45235885,169.06,168.94,100.8268]
[1641328656162,25.30825885,169.06,168.94,100.8268]
[1641328656363,26.06825885,169.06,168.94,100.8268]
[1641328656961,8.52,169.05,168.94,76.2877]
[1641328657162,16.076,169.05,168.94,75.0015]
[1641328657359,16.836,169.05,168.94,75.0015]
[1641328658364,16.836,169.05,168.94,75.5015]
[1641328658365,9.28,169.05,168.94,75.5015]
[1641328658561,9.28,169.05,169.02,92.7]
[1641328658770,6.06045808,169.04,169.02,92.7]
[1641328659365,2.18721615,169.03,169.02,92.7]
[1641328660073,6.56045808,169.04,169.02,92.7]
[1641328660264,6.82045808,169.04,168.94,75.5015]
[1641328660464,9.13209861,169.03,168.94,75.5015]
[1641328660674,9.13209861,169.03,168.94,0.76]
[1641328660873,9.89209861,169.03,168.91,51.84427197]
[1641328661066,2.67300809,169.02,168.91,51.84427197]
[1641328661267,23.4252,169.04,168.91,51.84427197]
[1641328661469,23.9252,169.04,168.91,51.84427197]
[1641328661671,24.1852,169.04,168.91,51.84427197]
[1641328662168,25.5319,169.04,168.91,51.84427197]
[1641328662370,2.30466436,169.03,168.91,51.84427197]
[1641328662567,2.56466436,169.03,168.91,51.84427197]
[1641328662768,2.30466436,169.03,168.91,51.84427197]
[1641328663167,2.30466436,169.03,168.91,53.29277983]
[1641328663569,23.4252,169.04,168.91,53.29277983]
[1641328663970,8.52,169.05,168.91,53.29277983]
[1641328665273,28.68930869,169.07,168.91,61.81277983]
[1641328665473,28.68930869,169.07,168.91,71.62289788]
[1641328665773,27.38620869,169.07,168.91,71.62289788]
[1641328666172,24.8695,169.07,168.91,71.62289788]
[1641328667974,33.1793,169.1,168.91,71.62289788]
[1641328668175,8.52,169.1,168.91,76.31289788]
[1641328668975,2.19783799,169.09,168.91,76.31289788]
[1641328669375,2.19783799,169.09,168.91,182.75289788]
[1641328670387,2.19783799,169.09,168.92,8.8746]
[1641328670585,2.19783799,169.09,168.93,32.7111]
[1641328670781,2.19783799,169.09,168.95,29.38590948]
[1641328670981,2.19783799,169.09,168.96,32.4794]
[1641328671384,2.19783799,169.09,168.96,33.2394]
[1641328671586,2.19783799,169.09,168.97,1.3235]
[1641328671784,2.19783799,169.09,168.99,29.77147345]
[1641328671985,2.19783799,169.09,168.99,30.53147345]
[1641328673185,2.19783799,169.09,168.99,31.85797345]
[1641328673585,2.45783799,169.09,168.99,31.59797345]
[1641328676212,2.45783799,169.09,168.99,2.0865]
[1641328676413,2.95783799,169.09,168.99,2.0865]
[1641328676710,2.45783799,169.09,168.99,2.0865]
[1641328676911,2.45783799,169.09,168.99,26.2586]
[1641328678313,2.95783799,169.09,168.99,26.2586]
[1641328678715,2.45783799,169.09,168.99,26.2586]
[1641328679119,2.19783799,169.09,168.99,26.2586]
[1641328679319,24.8043,169.11,168.99,26.2586]
[1641328679519,23.7753,169.11,168.99,26.2586]
[1641328679719,1.16376655,169.13,168.99,26.2586]
[1641328680120,1.16376655,169.13,169.0,8.52]
[1641328680520,1.16376655,169.13,169.01,23.7]
[1641328680720,1.16376655,169.13,169.02,31.66127459]
[1641328681021,75.46305776,169.14,169.03,25.6519]
[1641328681229,0.5,169.13,169.03,25.6519]
[1641328681423,0.5,169.13,169.03,26.4119]
[1641328681820,100.62775776,169.14,169.03,26.4119]
[1641328690637,4.64316459,169.13,169.03,26.4119]
[1641328690839,5.14316459,169.13,169.03,26.4119]
[1641328691037,5.40316459,169.13,169.03,26.4119]
[1641328691739,5.40316459,169.13,169.03,25.9119]
[1641328691938,6.72946459,169.13,169.03,25.9119]
[1641328692338,6.72946459,169.13,169.03,0.26]
[1641328692539,22.7702,169.12,169.0,84.0692]
[1641328692737,2.93343404,169.11,169.0,84.5692]
[1641328692968,2.93343404,169.11,169.01,23.1357]
[1641328693166,3.19343404,169.11,169.01,23.1357]
[1641328693366,3.69343404,169.11,169.01,23.1357]
[1641328693569,4.97083404,169.11,169.01,23.1357]
[1641328694170,4.97083404,169.11,169.01,23.3957]
[1641328694468,4.97083404,169.11,169.01,23.1357]
[1641328694666,4.97083404,169.11,169.0,1.251]
[1641328694867,4.97083404,169.11,168.98,31.1215]
[1641328695068,4.97083404,169.11,168.98,31.6215]
[1641328695269,4.71083404,169.11,168.98,31.6215]
[1641328695468,4.71083404,169.11,168.99,25.8245]
[1641328695868,4.71083404,169.11,168.99,26.0845]
[1641328696068,23.2318,169.1,168.99,26.0845]
[1641328696468,23.7318,169.1,168.99,26.0845]
[1641328696670,30.43954491,169.09,168.99,26.0845]
[1641328696869,30.93954491,169.09,168.99,26.0845]
[1641328697072,2.40842871,169.08,168.99,26.5845]
[1641328697470,23.2318,169.1,168.99,26.5845]
[1641328697670,74.24716655,169.14,169.0,8.52]
[1641328697870,23.0497,169.13,169.01,22.5039]
[1641328698072,23.0497,169.13,169.01,22.7639]
[1641328698272,23.5497,169.13,169.01,23.2639]
[1641328698472,23.5497,169.13,169.02,1.3235]
[1641328698670,2.56921452,169.12,169.02,1.3235]
[1641328698872,3.06921452,169.12,169.02,2.0835]
[1641328710987,2.56921452,169.12,169.02,2.0835]
[1641328712190,3.06921452,169.12,169.02,2.0835]
[1641328712589,3.06921452,169.12,169.02,1.8235]
[1641328712789,3.32921452,169.12,169.02,1.8235]
[1641328712989,3.06921452,169.12,169.02,1.3235]
[1641328713192,3.32921452,169.12,169.02,1.3235]
[1641328713490,3.06921452,169.12,169.02,1.3235]
[1641328713892,2.56921452,169.12,169.02,2.0835]
[1641328714895,2.82921452,169.12,169.02,2.0835]
[1641328715495,3.32921452,169.12,169.02,2.0835]
[1641328716195,2.56921452,169.12,169.02,2.0835]
[1641328721402,24.3023,169.13,169.02,2.0835]
[1641328722605,27.32411108,169.13,169.02,2.0835]
[1641328723509,10.29805171,169.12,169.02,1.8235]
[1641328723909,17.17505171,169.12,169.02,1.3235]
[1641328724108,23.0711,169.11,169.02,1.3235]
[1641328724407,2.24687154,169.1,168.99,24.4571]
[1641328724610,2.24687154,169.1,169.01,0.5]
[1641328725210,3.48357154,169.1,168.99,56.74483035]
[1641328726931,3.48357154,169.1,168.99,57.00483035]
[1641328727732,1.98357154,169.1,168.99,57.00483035]
[1641328731034,2.24357154,169.1,168.99,57.00483035]
[1641328733041,1.2367,169.1,168.99,57.00483035]
[1641328733342,23.0711,169.11,169.0,8.52]
[1641328733544,1.16376655,169.13,169.01,22.6458]
[1641328733741,1.16376655,169.13,169.02,8.52]
[1641328733942,1.16376655,169.13,169.02,9.02]
[1641328734241,1.16376655,169.13,169.02,9.28]
[1641328734441,2.20019055,169.15,169.04,29.52758599]
[1641328734644,2.20019055,169.15,169.05,24.9141]
[1641328734841,2.20019055,169.15,169.05,25.4141]
[1641328735041,2.20019055,169.15,169.05,25.6741]
[1641328736242,2.20019055,169.15,169.06,8.52]
[1641328736442,49.89676655,169.17,169.06,9.02]
[1641328736642,49.89676655,169.17,169.06,9.28]
[1641328737043,48.733,169.17,169.07,23.3369]
[1641328737243,48.733,169.17,169.07,24.5772]
[1641328737444,48.733,169.17,169.07,25.3372]
[1641328737747,3.04567263,169.16,169.07,25.3372]
[1641328737954,3.04567263,169.16,169.08,26.92128192]
[1641328738346,3.04567263,169.16,169.08,27.68128192]
[1641328740948,3.04567263,169.16,169.08,0.5]
[1641328741149,3.30567263,169.16,169.08,0.5]
[1641328741349,3.30567263,169.16,169.06,0.5]
[1641328741749,3.30567263,169.16,169.04,9.02]
[1641328741949,31.64310133,169.16,169.04,9.02]
[1641328742149,34.36000919,169.16,169.04,24.3877]
[1641328742550,35.52377574,169.16,169.04,0.5]
[1641328742952,35.52377574,169.16,169.03,31.39871796]
[1641328743150,35.52377574,169.16,169.03,31.65871796]
[1641328743352,24.5622,169.15,169.03,31.65871796]
[1641328743553,24.8222,169.15,169.03,31.39871796]
[1641328743753,25.3222,169.15,169.03,31.39871796]
[1641328745157,25.3222,169.15,169.03,31.65871796]
[1641328746685,24.8222,169.15,169.03,31.65871796]
[1641328746886,25.3222,169.15,169.03,31.65871796]
[1641328747787,26.77070786,169.15,169.03,31.65871796]
[1641328747989,27.93447441,169.15,169.03,31.65871796]
[1641328749786,26.01070786,169.15,169.03,31.65871796]
[1641328749987,24.8222,169.15,169.04,23.9486]
[1641328750386,24.8222,169.15,169.04,24.7086]
[1641328750790,24.5622,169.15,169.04,24.7086]
[1641328751687,24.8222,169.15,169.04,24.7086]
[1641328751887,24.8222,169.15,169.05,1.3675]
[1641328752087,24.8222,169.15,169.05,1.6275]
[1641328752291,24.8222,169.15,169.05,2.1275]
[1641328757294,24.5622,169.15,169.05,2.1275]
[1641328757494,24.8222,169.15,169.05,2.1275]
[1641328757695,24.5622,169.15,169.05,2.1275]
[1641328758596,3.04567263,169.16,169.05,10.6475]
[1641328759196,3.04567263,169.16,169.06,24.0215]
[1641328759396,3.04567263,169.16,169.07,8.52]
[1641328759598,2.49336655,169.21,169.08,23.50263029]
[1641328759897,2.49336655,169.21,169.09,32.11]
[1641328760097,2.49336655,169.21,169.09,32.37]
[1641328760297,1.16376655,169.21,169.09,32.87]
[1641328760497,2.45031522,169.2,169.09,32.87]
[1641328760700,2.45031522,169.2,169.1,1.323]
[1641328760898,2.45031522,169.2,169.12,24.52978114]
[1641328761100,2.45031522,169.2,169.13,8.52]
[1641328761500,2.45031522,169.2,169.13,9.28]
[1641328762900,103.08226655,169.24,169.13,9.28]